Cogmind - Beta 15 @@@ ROGUE MODE // 2025.05.29 @ 18:07:10 Player: mehbruh Result: Core destroyed Performance ------------- Evolutions (0) 0 Regions Visited (2) 400 Robots Destroyed (17) 85 Value Destroyed (452) 452 Prototype IDs (1) 20 Alien Tech Used (0) 0 Bonus (0) 0 TOTAL SCORE: 957 Bonus ------- None Cogmind --------- Core Integrity 0/250 Matter 300/300 Energy 125/125 System Corruption 1% Temperature Cool (0) Movement Walking (120) Location -10/Subcaves Parts ------- > --- POWER (1+3) ------ Light Ion Engine > --- PROPULSION (2) --- Aluminum Leg Aluminum Leg > --- UTILITY (2) ------ Small Storage Unit Power Bank > --- WEAPON (2) ------- Subdweller Laser Subdweller Machine Gun > --- INVENTORY (8) ---- Subdweller Power Source Subdweller Monowheel Subdweller Monowheel Disposable Heat Sink Subdweller Optics Subdweller Laser Mining Laser Peak State ------------ > --- POWER ------------ Subdweller Power Source > --- PROPULSION ------- Aluminum Leg Aluminum Leg > --- UTILITY ---------- Small Storage Unit Power Bank > --- WEAPON ----------- Subdweller Laser Subdweller Machine Gun > --- INVENTORY -------- Subdweller Monowheel Subdweller Monowheel Disposable Heat Sink Subdweller Optics Subdweller Laser Mining Laser [Rating: 19] Favorites ----------- Power Subdweller Power Source Engine Subdweller Power Source Propulsion Light Treads Treads Light Treads Leg Aluminum Leg Utility Small Storage Unit Device Subdweller Optics Storage Small Storage Unit Weapon Assault Rifle Energy Gun Medium Laser Ballistic Gun Assault Rifle Special Weapon Mining Laser Build | -11 -10 -10 ------- Run | Yrd Mat Sub Slots Evolved . | . . . Power . | . . . Propulsion . | . . . Utility . | . . . Weapon . | . . . Parts Attached 20 | 7 . 13 Power 4 | 1 . 3 Engine 4 | 1 . 3 Core . | . . . Reactor . | . . . Propulsion 4 | 2 . 2 Treads 2 | 2 . . Leg 2 | . . 2 Wheel . | . . . Hover . | . . . Flight . | . . . Utility 5 | 2 . 3 Device 4 | 1 . 3 Storage 1 | 1 . . Processor . | . . . Hackware . | . . . Protection . | . . . Artifact . | . . . Weapon 7 | 2 . 5 Energy Gun 3 | 1 . 2 Energy Cannon . | . . . Ballistic Gun 3 | 1 . 2 Ballistic Cannon . | . . . Launcher . | . . . Special Weapon 1 | . . 1 Impact Weapon . | . . . Slashing Weapon . | . . . Piercing Weapon . | . . . Special Melee Weapon . | . . . Unidentified Prototypes 1 | . . 1 Parts Lost 4 | . . 4 Power 1 | . . 1 Propulsion 2 | . . 2 Utility 1 | . . 1 Weapon . | . . . Highest Loss Streak 3 | . . 3 To Critical Strikes 1 | . . 1 Average Backups 7 | 3 6 7 Power . | . 1 . Propulsion 3 | 2 4 2 Utility 1 | . . 1 Weapon 2 | . 1 2 Tool/Special . | . . . Unused Backups 8 | . . 8 Power 1 | . . 1 Propulsion 4 | . . 4 Utility 2 | . . 2 Weapon 1 | . . 1 Tool/Special . | . . . Average Slot Usage (%) 95 | . 100 94 Engine 12 | . 14 12 Treads 24 | . 28 24 Leg 2 | . . 2 Device 13 | . 14 13 Storage 13 | . 14 13 Energy Gun 11 | . 14 11 Ballistic Gun 12 | . 14 12 Special Weapon 2 | . . 3 Peak Build Rating 19 | 7 7 19 Average Rating 9 | 5 7 9 On Entrance 4 | . 7 7 Naked Turns . | . . . Heaviest Build 21 | 14 14 21 Greatest Support 40 | 40 40 40 Greatest Overweight (x) 2 | 2 . 1 Average Overweight (x) . | . . . Largest Inventory Capacity 8 | 8 8 8 Average Capacity 7 | 7 8 7 Most Carried 8 | 6 8 8 Average Carried 7 | 4 6 7 Final Capacity 8 | 8 8 8 Final Carried 8 | 6 8 7 Class Distribution -------------------- 100% | Mutant Dominant Class ---------------- Mutant | -10/Materials Mutant | -10/Subcaves Resources | -11 -10 -10 ----------- Run | Yrd Mat Sub Matter Collected 661 | 291 26 344 Remotely . | . . . Salvage Created 598 | 130 50 418 Parts 48 | 9 1 38 Haulers Intercepted . | . . . Recyclers Shooed 1 | 1 . . Parts Field Recycled . | . . . Retrieved Matter . | . . . Parts Self-Destructed 17 | . . 17 Prevented . | . . . Kills | -11 -10 -10 ------- Run | Yrd Mat Sub Combat Hostiles Destroyed 13 | . 1 12 Guns 13 | . 1 12 Classes Destroyed 5 | 2 1 2 Tunneler 3 | 3 . . Recycler 1 | 1 . . Swarmer 3 | . . 3 Grunt 3 | . 1 2 Subdweller 7 | . . 7 Best Kill Streak 4 | 4 1 3 Combat Bots Only 3 | . 1 3 Max Kills in Single Turn 1 | 1 1 1 Gunslinging . | . . . Exploded . | . . . Melee . | . . . Uniques/NPCs Destroyed . | . . . Combat | -11 -10 -10 -------- Run | Yrd Mat Sub Hostile Shots Fired 74 | . . 74 Missed 22 | . . 22 Hits 52 | . . 52 Projectile 52 | . . 52 Critical Strikes 1 | . . 1 Damage Taken 963 | . . 963 Core 257 | . . 257 Absorbed by Shields . | . . . Core Remaining (%) 100 | 100 . . Volleys Fired 55 | 7 1 47 Largest 2 | 2 2 2 Hottest 100 | 60 60 100 Shots Fired 102 | 14 2 86 Gun 94 | 14 2 78 Cannon . | . . . Launcher . | . . . Special 8 | . . 8 Kinetic 37 | 7 1 29 Thermal 65 | 7 1 57 Explosive . | . . . Electromagnetic . | . . . Robot Hit Streak 13 | 4 6 13 Robot Miss Streak 3 | 1 . 3 Penetration Max . | . . . Secondary Targets 2 | . . 2 Max Gunslinging Chain 1 | . . 1 Shots Hit Robots 73 | 9 2 62 Core Hits 30 | 5 1 24 Critical Kills . | . . . Critical Parts Destroyed . | . . . Critical Strikes 3 | . . 3 Burn 3 | . . 3 Melee Attacks . | . . . Impact . | . . . Slashing . | . . . Piercing . | . . . Sneak Attacks . | . . . Combat Hostiles . | . . . Follow-up Attacks . | . . . Damage Inflicted 888 | 108 26 754 Guns 875 | 108 26 741 Cannons . | . . . Explosions . | . . . Melee . | . . . Ramming 13 | . . 13 Kinetic 335 | 54 15 266 Thermal 540 | 54 11 475 Explosive . | . . . Electromagnetic . | . . . Impact . | . . . Slashing . | . . . Piercing . | . . . Highest Corruption 1 | . . 1 Average Corruption 1 | . . 1 Corruption Purged . | . . . Corruption Blocked . | . . . Overload Shots . | . . . Overflow Damage . | . . . Projectiles . | . . . Explosions . | . . . Melee . | . . . Knockbacks . | . . . Impact . | . . . Kinetic . | . . . Secondary . | . . . Self-Inflicted Damage 13 | . . 13 Shots . | . . . Rammed . | . . . Targets Rammed . | . . . Kicked . | . . . Crushed . | . . . Highest Temperature . | . . . Average Temperature . | . . . Received Heat Transfer 78 | . . 78 Siege Activations . | . . . Martial Activations . | . . . Shielding Activations . | . . . Robots Disrupted . | . . . Combat Hostiles . | . . . Robots Corrupted . | . . . Combat Hostiles . | . . . Parts Fried . | . . . Impact Corruptions . | . . . Robots Melted . | . . . Combat Hostiles . | . . . Parts Melted 2 | . . 2 Heat Transferred 1683 | 125 25 1533 Parts Sabotaged . | . . . Parts Stolen . | . . . Parts Stripped . | . . . Power Chain Reactions . | . . . Alert | -11 -10 -10 ------- Run | Yrd Mat Sub Maximum Alert Level . | . . . Low Security (%) 100 | 100 100 . Level 1 . | . . . Level 2 . | . . . Level 3 . | . . . Level 4 . | . . . Level 5 . | . . . High Security . | . . . Max Security . | . . . Peak Influence 20 | 10 20 . Initial . | . . . Average 2 | 1 4 . Influence Increases 160 | 20 20 120 Destroy 0b10 Robot/C 120 | . 20 100 Destroy 0b10 Robot/NC 20 | 20 . . Destroy Leader 20 | . . 20 Influence Decreases 160 | 20 10 130 Entered New Map 6 | . . 6 Time Decay 154 | 20 10 124 Squads Dispatched . | . . . Investigation . | . . . Extermination . | . . . Reinforcement . | . . . Assault . | . . . Garrison . | . . . Intercept . | . . . Searches Triggered . | . . . Construction Impeded . | . . . Haulers Reinforced . | . . . Active Scanning Responses . | . . . Cargo Convoy Interrupts . | . . . Stealth | -11 -10 -10 --------- Run | Yrd Mat Sub Distress Signals 1 | . 1 . Communications Jammed . | . . . Distress Signals . | . . . Times Spotted 16 | . 2 14 Peak Tracking Total 3 | . 2 3 Tactical Retreats 1 | . . 1 Traps | -11 -10 -10 ------- Run | Yrd Mat Sub Traps Triggered 1 | . . 1 Indirectly . | . . . Trap Hack Attempts . | . . . Triggered . | . . . Disarmed . | . . . Reprogrammed . | . . . Reused . | . . . Traps Extracted . | . . . Installed . | . . . Triggered . | . . . Machines | -11 -10 -10 ---------- Run | Yrd Mat Sub Machines Disabled . | . . . Max in Single Turn . | . . . Machines Repaired . | . . . Machines Dismantled . | . . . Machines Sabotaged . | . . . Overloaded Fab Kills . | . . . Hacking | -11 -10 -10 --------- Run | Yrd Mat Sub Machines Accessed 1 | . . 1 Terminals . | . . . Fabricators . | . . . Repair Stations . | . . . Recycling Units . | . . . Scanalyzers . | . . . Garrison Access . | . . . Total Hacks 4 | . . 4 Successful 4 | . . 4 Failed . | . . . Catastrophic . | . . . Database Lockouts . | . . . Manual . | . . . Terminals . | . . . Fabricators . | . . . Repair Stations . | . . . Recycling Units . | . . . Scanalyzers . | . . . Garrison Access . | . . . Terminal Hacks 4 | . . 4 Record 4 | . . 4 Fabricator Hacks . | . . . Repair Station Hacks . | . . . Recycling Unit Hacks . | . . . Scanalyzer . | . . . Garrison Access Hacks . | . . . Unauthorized Hacks . | . . . Terminals . | . . . Fabricators . | . . . Repair Stations . | . . . Recycling Units . | . . . Scanalyzers . | . . . Garrison Access . | . . . Data Cores Recovered . | . . . Used . | . . . Hacking Detections . | . . . Full Trace Events . | . . . Feedback Events . | . . . Feedback Blocked . | . . . Robot Schematics Acquired . | . . . Robots Built . | . . . Authchips . | . . . Time . | . . . Total Robot Build Rating . | . . . Part Schematics Acquired . | . . . Parts Built . | . . . Authchips . | . . . Time . | . . . Total Part Build Rating . | . . . Parts Repaired . | . . . Time . | . . . Parts Recycled . | . . . Recycled Matter . | . . . Retrieved Matter . | . . . Retrieved Components . | . . . Parts Scanalyzed . | . . . Part Schematics Acquired . | . . . Parts Damaged . | . . . Bothacking | -11 -10 -10 ------------ Run | Yrd Mat Sub Used RIF Installer . | . . . Robots Hacked . | . . . Non-combat . | . . . Combat . | . . . Robot Hacks Applied . | . . . Relay Couplers Released . | . . . Fabnet Peak Effective % . | . . . Robots Rewired . | . . . Allies Hacked . | . . . Hacks Repelled . | . . . Allies | -11 -10 -10 -------- Run | Yrd Mat Sub Total Allies . | . . . Largest Group . | . . . Highest-Rated Group . | . . . Highest-Rated Ally . | . . . Total Orders . | . . . Ally Attacks . | . . . Total Damage . | . . . Kills . | . . . Allies Corrupted . | . . . Allies Melted . | . . . Intel | -11 -10 -10 ------- Run | Yrd Mat Sub Active Infowar (turns) 504 | 12 114 378 Optics 1 | . . 1 Seismic 503 | 12 114 377 Robot Analysis Total . | . . . Derelict Logs Recovered 2 | . . 2 Drone Launches . | . . . Drone Recoveries . | . . . Exploration | -11 -10 -10 ------------- Run | Yrd Mat Sub Turns Passed 1567 | 130 114 1323 Spaces Moved 848 | 61 69 718 Core 7 | 7 . . Treads 746 | 54 69 623 Legs 95 | . . 95 Wheels . | . . . Hover . | . . . Flight . | . . . Fastest Speed 50 | 50 160 120 Average Speed 155 | 153 160 155 Slowest Speed 190 | 160 160 190 Overloaded Moves . | . . . Propulsion Burnouts . | . . . Robots Hopped . | . . . Potential Cave-ins . | . . . Cave-ins Triggered . | . . . Exploration Rate (%) 27 | 5 24 52 Regions Visited 2 Branch Regions 1 Pre-discovered Areas . | . . . Known Exits Taken . | . . . Unknown Exits Taken 2 | 1 1 . Scrap Searched . | . . . Spaces Dug . | . . . Terrain Destroyed . | . . . Melee . | . . . Projectile . | . . . AOE . | . . . Terrain Rammed 2 | . . 2 Walls Destroyed . | . . . Machines Disabled . | . . . Actions | -11 -10 -10 --------- Run | Yrd Mat Sub Total 976 | 80 71 825 Wait 17 | . . 17 Move 846 | 60 68 718 Hop . | . . . Pick Up 16 | 6 2 8 Fast Attach 14 | 7 . 7 Attach 4 | . . 4 Detach . | . . . Swap 9 | . . 9 Drop 13 | . . 13 Fire 55 | 7 1 47 Melee . | . . . Ram 1 | . . 1 Kick . | . . . Crush . | . . . Escape Stasis . | . . . Rewire 1 | . . 1 Trap . | . . . Miscellaneous . | . . . Route ------- -11/Scrapyard -10/Materials (discovered 2 exits: [*Min] / *Sub) -10/Subcaves History --------- Turn | Location | Event 28 | -11/Scrapyard | Discovered new exit (range 16) 131 | -11/Scrapyard | Entered Materials 132 | -10/Materials | Met a group of wandering Federalists 189 | -10/Materials | Discovered new exit (range 9) 242 | -10/Materials | Discovered new exit (range 3) 245 | -10/Materials | Entered Subcaves 246 | -10/Subcaves | Continued accompanying wandering Federalists (1) 246 | -10/Subcaves | Approached by a straggling Scientist 311 | -10/Subcaves | Build established: Mutant 385 | -10/Subcaves | Shifting Twisted Machinery released Sub. Power Source 528 | -10/Subcaves | Learned Materials emergency access door positions 689 | -10/Subcaves | Shifting Twisted Machinery released Enh. Flamer 693 | -10/Subcaves | Shifting Twisted Machinery released Sub. Laser 1011 | -10/Subcaves | Visited Clippyterm 1015 | -10/Subcaves | Learned Research machine intel 1015 | -10/Subcaves | Learned Factory garrison access intel 1092 | -10/Subcaves | Core integrity fell below 50% 1108 | -10/Subcaves | Learned 2 Materials zone layouts 1110 | -10/Subcaves | A swath of the cavern ceiling suddenly collapsed 1397 | -10/Subcaves | A Subdweller sparked back to life 1397 | -10/Subcaves | A Subdweller sparked back to life 1397 | -10/Subcaves | A Subdweller sparked back to life 1404 | -10/Subcaves | Core integrity fell below 20% 1436 | -10/Subcaves | Lost 3 parts (1p2n) 1450 | -10/Subcaves | Found Prototype Device 1450 | -10/Subcaves | Identified Power Bank 1452 | -10/Subcaves | Attached Power Bank, gained temporary slots: Power x3 1568 | -10/Subcaves | Core destroyed Last Messages --------------- 01444_ Dropped Lgt. Assault Rifle. 01444_ Dropped Sml. Storage Unit. 01450_ Acquired Prototype Device. 01450_ Identified Power Bank. 01452_ Core temporarily expanded with Power slot. 01456_ Acquired Sml. Storage Unit. 01459_ Acquired Disposable Heat Sink. 01462_ Acquired 30 matter. 01464_ Acquired Sub. Monowheel. 01515_ Acquired Sub. Power Source. 01518_ Acquired 10 matter. 01522_ Acquired Lgt. Ion Engine. 01553_ Acquired 10 matter. 01566_ Kicked Wall. 01566_ Destabilizing: System corrupted (+1). 01566_ Destabilizing: System interference. 01566_ Sub. Laser temporarily disabled. 01568_ Kicked Wall. 01568_ Destabilizing: Core damaged (-12). Map ----- +----------------------------------------------------+ | ????####????????#"""""#????????????#######???????? | | ????# ###??????#""X""#???????????##""## #######?? | | #????# ######?#" "#??########?# ! " #?? | | ###### ##### ###?## ## ### = " "" #?? | | ## # #### ##??# !%""""" #" #?? | | ## #### ="""""### #?? | | ### ## ## #"""#### #?? | | ## # # ## ## #### ##""#?# ##?? | | ## ### ##?# ###"#### #"### | | ##?# % #?# #??## # "#"#" | | #### % #### ##??# #"#"#"" | | % ###### % ## #??## ####### #"#"""# | | ### #### #???###### ###"## | | ## #?# ####???# ####" | | ###?# ###?## #### | | # % ##???# % #??### ""#"" | | # ##### %##????# ## ##????## ## """# | | ##??#####?????##?## ###?????## ## #"# | | # ##????????????#### #???????# "" | | #?????###???## ## #??????# ### | | #??## ##?## # % #??????##??## | | "## ####?## ### # #???????????## # | | [## ##??### #??????????### ## | | ########### #?????????## ## | | #?????# # ## ## #????????# ## | | #????## ## @ ###????????## # ### | | ###?## ### ##????????## # | | %### ## # ##?# %#????????# | | ## # # # #??# % #?????# | | ## #??# #?????# ## ## | | % ### #??# ##?????##?### ## | | # #?# ###??# ##???????????# ### | | ######## ##?####????# ##????????????##### | | ##??#??#####??????????## #???????????????# | | ## #??????????????????###???????????????## ## | | #?????????????????????????????????????####? | | ## #?????????????????????????????????????????? | | ?# #?????????????????????????????????????????? | | # #?????????????????????????????????????????? | | ##?????????????????????????????????????????? | | ##?????????????????????????????????????????? | | #?????????????????????????????????????????? | | #?????????????????????????????????????????? | | #?????????????????????????????????????????? | | ## #?????????????????????????????????????????? | | ## % #?????????????????????????????????????????? | | ## #?????????????????????????????????????????? | | ###?# ##?????????????????????????????????????????? | | ?????????????????????????????????????????????????? | | ?????????????????????????????????????????????????? | +----------------------------------------------------+ Best States ------------- Heat Dissipation 25 Coolant Potential 50 Energy Generation 10 Energy Capacity 250 Matter Stores 300 Matter Capacity 300 Sight Range 16 Terrain Scan Density 10 Evasion (%) 55 Recoil Reduction 2 Item Schematics ----------------- None Robot Schematics ------------------ None Fabricated ------------ Nothing Repaired ---------- Nothing Alien Tech Used ----------------- None Achievements -------------- None Challenges ------------ None Game ------ Seed TeleporterChargeMinigun Manual? 0 Play Time 00:12:56 Cumulative 75.3 hours Start 2025.05.29 @ 17:56:08 End 2025.05.29 @ 18:07:10 Sessions 1 Manual Loads 0 Difficulty Rogue Special Mode None Game No. 76 Rogue 76 Adventurer 0 Explorer 0 Win Type - Total 3 Types 3/0/0/0/0/0/0/0/0/0 Lore% 41 Gallery% 45 Achievement% 48 Wizard Run 0 Options --------- Layout 1 ASCII 0 Keyboard 0 Movement Arrows Keybinds 0 Fullscreen 1 Font 24/Smallcaps Map View 50x35 Zoom Use 0% Tactical HUD 1 Map Filters NONE Filters NONE Steam 1 RUN: b4cabf4b-2fdf-4ff5-9d07-47849810d3ca